[Event "Early Titled Tuesday Blitz | February 8 2022"]
[White "Lucas, Arthur"]
[Black "Hartikainen, Jarmo"]
[WhiteFideId "26093073"]
[BlackFideId "503134"]
[WhiteElo "2129"]
[BlackElo "2109"]
[Result "1-0"]
[Round "02"]
[TimeControl "180+1"]
[Date "2022.02.08"]
[WhiteClock "0:00:57"]
[BlackClock "0:00:06"]

1. d4 {[%clk 0:03:00]}  Nf6 {[%clk 0:02:58]} 2. c4 {[%clk 0:02:58]}  g6 {[%clk 0:02:59]} 3. Nf3 {[%clk 0:02:57]}  d5 {[%clk 0:02:59]} 4. g3 {[%clk 0:02:57]}  Bg7 {[%clk 0:02:59]} 5. Bg2 {[%clk 0:02:57]}  O-O {[%clk 0:02:59]} 6. cxd5 {[%clk 0:02:55]}  Nxd5 {[%clk 0:02:58]} 7. O-O {[%clk 0:02:54]}  Nb6 {[%clk 0:02:50]} 8. Nc3 {[%clk 0:02:54]}  Nc6 {[%clk 0:02:39]} 9. e3 {[%clk 0:02:48]}  Bg4 {[%clk 0:02:06]} 10. h3 {[%clk 0:02:44]}  Be6 {[%clk 0:01:49]} 11. b3 {[%clk 0:02:40]}  a5 {[%clk 0:01:39]} 12. a3 {[%clk 0:02:24]}  a4 {[%clk 0:01:24]} 13. b4 {[%clk 0:02:19]}  Bc4 {[%clk 0:01:21]} 14. Re1 {[%clk 0:02:18]}  e6 {[%clk 0:01:22]} 15. Bb2 {[%clk 0:02:17]}  Rb8 {[%clk 0:01:12]} 16. Rc1 {[%clk 0:02:16]}  Na7 {[%clk 0:01:12]} 17. Nd2 {[%clk 0:02:15]}  Bb5 {[%clk 0:01:02]} 18. Nxb5 {[%clk 0:02:11]}  Nxb5 {[%clk 0:01:02]} 19. Nc4 {[%clk 0:02:04]}  Nxc4 {[%clk 0:01:01]} 20. Rxc4 {[%clk 0:02:05]}  Nd6 {[%clk 0:01:00]} 21. Rc5 {[%clk 0:02:03]}  Qd7 {[%clk 0:00:56]} 22. Qc2 {[%clk 0:02:01]}  Rfc8 {[%clk 0:00:53]} 23. Rc1 {[%clk 0:02:01]}  c6 {[%clk 0:00:48]} 24. Qxa4 {[%clk 0:01:59]}  b5 {[%clk 0:00:43]} 25. Qc2 {[%clk 0:01:51]}  Nc4 {[%clk 0:00:43]} 26. Rxc4 {[%clk 0:01:51]}  bxc4 {[%clk 0:00:43]} 27. Qxc4 {[%clk 0:01:52]}  Rb6 {[%clk 0:00:20]} 28. Qb3 {[%clk 0:01:23]}  Bf8 {[%clk 0:00:16]} 29. Rc4 {[%clk 0:01:21]}  Qb7 {[%clk 0:00:15]} 30. Qc2 {[%clk 0:01:18]}  Rb8 {[%clk 0:00:14]} 31. Bc3 {[%clk 0:01:14]}  Qd7 {[%clk 0:00:13]} 32. Bd2 {[%clk 0:01:13]}  Be7 {[%clk 0:00:13]} 33. Kh2 {[%clk 0:01:12]}  h5 {[%clk 0:00:13]} 34. h4 {[%clk 0:01:12]}  Kh7 {[%clk 0:00:14]} 35. Bf3 {[%clk 0:01:10]}  R8b7 {[%clk 0:00:12]} 36. Bxh5 {[%clk 0:01:09]}  Kg7 {[%clk 0:00:11]} 37. Bf3 {[%clk 0:01:09]}  Rb8 {[%clk 0:00:12]} 38. Kg2 {[%clk 0:01:07]}  Rh8 {[%clk 0:00:11]} 39. Bc3 {[%clk 0:01:07]}  f6 {[%clk 0:00:10]} 40. e4 {[%clk 0:01:00]}  Rhb8 {[%clk 0:00:08]} 41. Bd2 {[%clk 0:01:00]}  Kf7 {[%clk 0:00:08]} 42. Bf4 {[%clk 0:01:00]}  R8b7 {[%clk 0:00:07]} 43. Be3 {[%clk 0:00:57]}  Bd6 {[%clk 0:00:07]} 44. d5 {[%clk 0:00:56]}  cxd5 {[%clk 0:00:07]} 45. exd5 {[%clk 0:00:56]}  exd5 {[%clk 0:00:06]} 46. Bxd5+ {[%clk 0:00:57]} 1-0


[Site "https://www.chess.com"]

[Event "Early Titled Tuesday Blitz | February 8 2022"]
[White "Maltsevskaya, Aleksandra"]
[Black "Izoria, Zviad"]
[WhiteFideId "24174041"]
[BlackFideId "13601733"]
[WhiteElo "2283"]
[BlackElo "2626"]
[Result "0-1"]
[Round "02"]
[TimeControl "180+1"]
[Date "2022.02.08"]
[WhiteClock "0:00:14"]
[BlackClock "0:00:09"]

1. e4 {[%clk 0:02:52]}  c5 {[%clk 0:02:59]} 2. Nf3 {[%clk 0:02:50]}  a6 {[%clk 0:02:59]} 3. c3 {[%clk 0:02:36]}  e6 {[%clk 0:02:58]} 4. d4 {[%clk 0:02:34]}  d5 {[%clk 0:02:59]} 5. exd5 {[%clk 0:02:29]}  exd5 {[%clk 0:03:00]} 6. Bd3 {[%clk 0:02:27]}  c4 {[%clk 0:02:57]} 7. Be2 {[%clk 0:02:26]}  Bd6 {[%clk 0:02:56]} 8. O-O {[%clk 0:02:26]}  Ne7 {[%clk 0:02:55]} 9. b3 {[%clk 0:02:26]}  cxb3 {[%clk 0:02:44]} 10. axb3 {[%clk 0:02:27]}  Nbc6 {[%clk 0:02:43]} 11. h3 {[%clk 0:02:26]}  O-O {[%clk 0:02:42]} 12. c4 {[%clk 0:02:26]}  Be6 {[%clk 0:02:37]} 13. Nc3 {[%clk 0:02:25]}  Rc8 {[%clk 0:02:37]} 14. Be3 {[%clk 0:02:20]}  h6 {[%clk 0:02:31]} 15. Qd2 {[%clk 0:02:10]}  Bb4 {[%clk 0:02:27]} 16. Rfc1 {[%clk 0:02:09]}  Nf5 {[%clk 0:02:24]} 17. Bd3 {[%clk 0:02:02]}  Qd7 {[%clk 0:01:57]} 18. c5 {[%clk 0:01:14]}  Rfe8 {[%clk 0:01:49]} 19. Bc2 {[%clk 0:00:38]}  Nfe7 {[%clk 0:01:37]} 20. Rf1 {[%clk 0:00:31]}  Bxh3 {[%clk 0:01:17]} 21. gxh3 {[%clk 0:00:30]}  Qxh3 {[%clk 0:01:18]} 22. Nh2 {[%clk 0:00:30]}  Nf5 {[%clk 0:01:04]} 23. Qd3 {[%clk 0:00:31]}  g6 {[%clk 0:00:50]} 24. Nxd5 {[%clk 0:00:29]}  Nh4 {[%clk 0:00:34]} 25. Nf4 {[%clk 0:00:20]}  Nf3+ {[%clk 0:00:27]} 26. Nxf3 {[%clk 0:00:19]}  Qxf3 {[%clk 0:00:28]} 27. Qe2 {[%clk 0:00:19]}  Qxf4 {[%clk 0:00:27]} 28. Bxf4 {[%clk 0:00:18]}  Rxe2 {[%clk 0:00:26]} 29. Bd3 {[%clk 0:00:18]}  Nxd4 {[%clk 0:00:22]} 30. Be3 {[%clk 0:00:17]}  Nf3+ {[%clk 0:00:10]} 31. Kg2 {[%clk 0:00:17]}  Rxe3 {[%clk 0:00:11]} 32. fxe3 {[%clk 0:00:15]}  Ne5 {[%clk 0:00:12]} 33. Bc4 {[%clk 0:00:13]}  Rxc5 {[%clk 0:00:10]} 34. Rac1 {[%clk 0:00:11]}  Nxc4 {[%clk 0:00:09]} 35. Rxc4 {[%clk 0:00:10]}  Rxc4 {[%clk 0:00:09]} 36. bxc4 {[%clk 0:00:11]}  a5 {[%clk 0:00:09]} 37. Kf3 {[%clk 0:00:11]}  Bc5 {[%clk 0:00:09]} 38. Rb1 {[%clk 0:00:12]}  b6 {[%clk 0:00:10]} 39. Ke4 {[%clk 0:00:12]}  Kf8 {[%clk 0:00:09]} 40. Rd1 {[%clk 0:00:12]}  Ke7 {[%clk 0:00:09]} 41. Kd5 {[%clk 0:00:12]}  a4 {[%clk 0:00:09]} 42. e4 {[%clk 0:00:13]}  a3 {[%clk 0:00:10]} 43. e5 {[%clk 0:00:13]}  h5 {[%clk 0:00:10]} 44. Rf1 {[%clk 0:00:13]}  h4 {[%clk 0:00:10]} 45. Re1 {[%clk 0:00:14]}  h3 {[%clk 0:00:10]} 46. e6 {[%clk 0:00:14]}  h2 {[%clk 0:00:09]} 0-1


[Site "https://www.chess.com"]

[Event "Early Titled Tuesday Blitz | February 8 2022"]
[White "Martinez Lopez, David"]
[Black "Bernadskiy, Vitaliy"]
[WhiteFideId "22235779"]
[BlackFideId "14100371"]
[WhiteElo "2394"]
[BlackElo "2473"]
[Result "0-1"]
[Round "02"]
[TimeControl "180+1"]
[Date "2022.02.08"]
[WhiteClock "0:00:01"]
[BlackClock "0:01:03"]

1. e4 {[%clk 0:03:00]}  e6 {[%clk 0:03:00]} 2. d4 {[%clk 0:03:00]}  d5 {[%clk 0:03:01]} 3. e5 {[%clk 0:02:56]}  Bd7 {[%clk 0:03:00]} 4. c4 {[%clk 0:02:54]}  dxc4 {[%clk 0:02:59]} 5. Bxc4 {[%clk 0:02:53]}  Bc6 {[%clk 0:02:57]} 6. Nf3 {[%clk 0:02:36]}  Nd7 {[%clk 0:02:53]} 7. O-O {[%clk 0:02:34]}  Nb6 {[%clk 0:02:53]} 8. Bb3 {[%clk 0:02:21]}  Ne7 {[%clk 0:02:53]} 9. Nc3 {[%clk 0:02:20]}  Nf5 {[%clk 0:02:52]} 10. Be3 {[%clk 0:02:16]}  Be7 {[%clk 0:02:49]} 11. Bc2 {[%clk 0:02:14]}  O-O {[%clk 0:02:42]} 12. Be4 {[%clk 0:01:40]}  Bxe4 {[%clk 0:02:36]} 13. Nxe4 {[%clk 0:01:41]}  Nd5 {[%clk 0:02:35]} 14. Bd2 {[%clk 0:01:35]}  Qd7 {[%clk 0:02:34]} 15. Ng3 {[%clk 0:01:33]}  Nxg3 {[%clk 0:02:30]} 16. hxg3 {[%clk 0:01:34]}  Rfd8 {[%clk 0:02:26]} 17. Rc1 {[%clk 0:01:33]}  Rac8 {[%clk 0:02:26]} 18. Qe2 {[%clk 0:01:30]}  Qa4 {[%clk 0:02:23]} 19. a3 {[%clk 0:01:26]}  h6 {[%clk 0:02:22]} 20. g4 {[%clk 0:01:24]}  c5 {[%clk 0:02:20]} 21. dxc5 {[%clk 0:01:20]}  Qxg4 {[%clk 0:02:09]} 22. b4 {[%clk 0:01:19]}  b6 {[%clk 0:02:08]} 23. c6 {[%clk 0:01:01]}  Nc7 {[%clk 0:02:06]} 24. Bc3 {[%clk 0:00:52]}  Bg5 {[%clk 0:01:59]} 25. Rcd1 {[%clk 0:00:43]}  Nd5 {[%clk 0:01:59]} 26. Rxd5 {[%clk 0:00:27]}  Rxd5 {[%clk 0:01:57]} 27. b5 {[%clk 0:00:26]}  Qa4 {[%clk 0:01:50]} 28. Rb1 {[%clk 0:00:26]}  Qxa3 {[%clk 0:01:44]} 29. Nxg5 {[%clk 0:00:14]}  Qxc3 {[%clk 0:01:39]} 30. Nf3 {[%clk 0:00:15]}  Rcd8 {[%clk 0:01:32]} 31. g3 {[%clk 0:00:09]}  g5 {[%clk 0:01:28]} 32. Kg2 {[%clk 0:00:09]}  Qd3 {[%clk 0:01:26]} 33. Qxd3 {[%clk 0:00:08]}  Rxd3 {[%clk 0:01:27]} 34. Ra1 {[%clk 0:00:09]}  R3d5 {[%clk 0:01:14]} 35. Rxa7 {[%clk 0:00:08]}  Rxb5 {[%clk 0:01:14]} 36. Rb7 {[%clk 0:00:09]}  Rc8 {[%clk 0:01:12]} 37. c7 {[%clk 0:00:07]}  Rc5 {[%clk 0:01:12]} 38. Nd4 {[%clk 0:00:07]}  R8xc7 {[%clk 0:01:09]} 39. Rxb6 {[%clk 0:00:07]}  Rxe5 {[%clk 0:01:09]} 40. Rb8+ {[%clk 0:00:05]}  Kg7 {[%clk 0:01:08]} 41. Nb5 {[%clk 0:00:06]}  Rd7 {[%clk 0:01:08]} 42. Rb6 {[%clk 0:00:05]}  h5 {[%clk 0:01:07]} 43. Nd6 {[%clk 0:00:04]}  Rxd6 {[%clk 0:01:05]} 44. Rxd6 {[%clk 0:00:04]}  g4 {[%clk 0:01:05]} 45. Rd4 {[%clk 0:00:04]}  Rd5 {[%clk 0:01:05]} 46. Re4 {[%clk 0:00:03]}  Kg6 {[%clk 0:01:05]} 47. Rb4 {[%clk 0:00:03]}  f5 {[%clk 0:01:05]} 48. Rb7 {[%clk 0:00:02]}  e5 {[%clk 0:01:05]} 49. Rb6+ {[%clk 0:00:02]}  Kg5 {[%clk 0:01:05]} 50. Rb8 {[%clk 0:00:02]}  f4 {[%clk 0:01:05]} 51. Rg8+ {[%clk 0:00:02]}  Kh6 {[%clk 0:01:05]} 52. gxf4 {[%clk 0:00:01]}  exf4 {[%clk 0:01:05]} 53. Rf8 {[%clk 0:00:02]}  Kg5 {[%clk 0:01:03]} 54. Rg8+ {[%clk 0:00:01]}  Kh4 {[%clk 0:01:03]} 0-1


[Site "https://www.chess.com"]

[Event "Early Titled Tuesday Blitz | February 8 2022"]
[White "Martinovici, Ilia"]
[Black "Martirosyan, Haik M."]
[WhiteFideId "13907034"]
[BlackFideId "13306553"]
[WhiteElo "2303"]
[BlackElo "2735"]
[Result "1-0"]
[Round "02"]
[TimeControl "180+1"]
[Date "2022.02.08"]
[WhiteClock "0:00:21"]
[BlackClock "0:00:14"]

1. d4 {[%clk 0:03:00]}  Nf6 {[%clk 0:02:58]} 2. c4 {[%clk 0:03:01]}  e6 {[%clk 0:02:58]} 3. Nc3 {[%clk 0:03:01]}  Bb4 {[%clk 0:02:57]} 4. Qc2 {[%clk 0:03:01]}  Nc6 {[%clk 0:02:53]} 5. e3 {[%clk 0:02:56]}  d6 {[%clk 0:02:51]} 6. Ne2 {[%clk 0:02:49]}  O-O {[%clk 0:02:48]} 7. a3 {[%clk 0:02:49]}  Bxc3+ {[%clk 0:02:48]} 8. Nxc3 {[%clk 0:02:50]}  Re8 {[%clk 0:02:47]} 9. Be2 {[%clk 0:02:49]}  b6 {[%clk 0:02:47]} 10. O-O {[%clk 0:02:47]}  Bb7 {[%clk 0:02:47]} 11. b4 {[%clk 0:02:47]}  a5 {[%clk 0:02:43]} 12. b5 {[%clk 0:02:44]}  Ne7 {[%clk 0:02:44]} 13. Bb2 {[%clk 0:02:41]}  Ng6 {[%clk 0:02:45]} 14. f4 {[%clk 0:02:36]}  Qd7 {[%clk 0:02:36]} 15. Rad1 {[%clk 0:02:32]}  Rad8 {[%clk 0:02:34]} 16. c5 {[%clk 0:02:30]}  Qe7 {[%clk 0:02:30]} 17. c6 {[%clk 0:02:24]}  Bc8 {[%clk 0:02:30]} 18. e4 {[%clk 0:02:24]}  e5 {[%clk 0:02:27]} 19. fxe5 {[%clk 0:02:11]}  dxe5 {[%clk 0:02:26]} 20. d5 {[%clk 0:02:10]}  Nf4 {[%clk 0:02:26]} 21. Bf3 {[%clk 0:01:48]}  Rf8 {[%clk 0:02:22]} 22. a4 {[%clk 0:01:44]}  Ne8 {[%clk 0:02:21]} 23. Qb3 {[%clk 0:01:42]}  Nd6 {[%clk 0:02:20]} 24. Ba3 {[%clk 0:01:43]}  f5 {[%clk 0:02:20]} 25. exf5 {[%clk 0:01:31]}  Bxf5 {[%clk 0:02:20]} 26. Ne4 {[%clk 0:01:32]}  Bxe4 {[%clk 0:02:14]} 27. Bxe4 {[%clk 0:01:32]}  Ne2+ {[%clk 0:02:08]} 28. Kh1 {[%clk 0:01:32]}  Rxf1+ {[%clk 0:01:56]} 29. Rxf1 {[%clk 0:01:33]}  Qh4 {[%clk 0:01:56]} 30. Bb1 {[%clk 0:01:02]}  Nf4 {[%clk 0:01:10]} 31. g3 {[%clk 0:00:45]}  Qh3 {[%clk 0:01:01]} 32. Qf3 {[%clk 0:00:43]}  Nc4 {[%clk 0:00:28]} 33. gxf4 {[%clk 0:00:26]}  Qh4 {[%clk 0:00:25]} 34. fxe5 {[%clk 0:00:23]}  g6 {[%clk 0:00:13]} 35. Qf7+ {[%clk 0:00:22]}  Kh8 {[%clk 0:00:14]} 36. Be7 {[%clk 0:00:21]} 1-0


[Site "https://www.chess.com"]

[Event "Early Titled Tuesday Blitz | February 8 2022"]
[White "Maurizzi, Marc`Andria"]
[Black "Jones, Gawain C B"]
[WhiteFideId "36083534"]
[BlackFideId "409561"]
[WhiteElo "2186"]
[BlackElo "2657"]
[Result "0-1"]
[Round "02"]
[TimeControl "180+1"]
[Date "2022.02.08"]
[WhiteClock "0:00:21"]
[BlackClock "0:00:39"]

1. d4 {[%clk 0:03:00]}  Nf6 {[%clk 0:02:59]} 2. c4 {[%clk 0:02:59]}  c5 {[%clk 0:02:58]} 3. d5 {[%clk 0:02:58]}  b5 {[%clk 0:02:58]} 4. cxb5 {[%clk 0:02:56]}  a6 {[%clk 0:02:58]} 5. b6 {[%clk 0:02:55]}  g6 {[%clk 0:02:58]} 6. Nc3 {[%clk 0:02:55]}  Bg7 {[%clk 0:02:58]} 7. e4 {[%clk 0:02:55]}  d6 {[%clk 0:02:58]} 8. Nf3 {[%clk 0:02:53]}  O-O {[%clk 0:02:58]} 9. Be2 {[%clk 0:02:52]}  Nbd7 {[%clk 0:02:57]} 10. a4 {[%clk 0:02:52]}  Qxb6 {[%clk 0:02:55]} 11. Nd2 {[%clk 0:02:49]}  Qb4 {[%clk 0:02:45]} 12. O-O {[%clk 0:02:44]}  Ne5 {[%clk 0:02:35]} 13. Ra3 {[%clk 0:02:37]}  Bg4 {[%clk 0:02:28]} 14. f3 {[%clk 0:02:33]}  Bd7 {[%clk 0:02:26]} 15. Kh1 {[%clk 0:02:22]}  c4 {[%clk 0:02:10]} 16. Qc2 {[%clk 0:01:53]}  Rfc8 {[%clk 0:02:08]} 17. f4 {[%clk 0:01:47]}  Nd3 {[%clk 0:01:57]} 18. Bxd3 {[%clk 0:01:47]}  cxd3 {[%clk 0:01:57]} 19. Qxd3 {[%clk 0:01:48]}  Qc5 {[%clk 0:01:33]} 20. Rb3 {[%clk 0:01:16]}  Ng4 {[%clk 0:01:29]} 21. Qe2 {[%clk 0:01:03]}  Ne3 {[%clk 0:01:28]} 22. Rf3 {[%clk 0:01:02]}  Nc2 {[%clk 0:01:27]} 23. e5 {[%clk 0:00:56]}  Nd4 {[%clk 0:01:24]} 24. Qd1 {[%clk 0:00:55]}  Bg4 {[%clk 0:01:19]} 25. Rb7 {[%clk 0:00:49]}  dxe5 {[%clk 0:01:18]} 26. Nde4 {[%clk 0:00:44]}  Qc4 {[%clk 0:01:15]} 27. Rxe7 {[%clk 0:00:43]}  Bxf3 {[%clk 0:01:10]} 28. gxf3 {[%clk 0:00:43]}  Nf5 {[%clk 0:01:05]} 29. Rxe5 {[%clk 0:00:38]}  Re8 {[%clk 0:00:54]} 30. Rxe8+ {[%clk 0:00:32]}  Rxe8 {[%clk 0:00:53]} 31. d6 {[%clk 0:00:33]}  Rd8 {[%clk 0:00:46]} 32. Nd5 {[%clk 0:00:22]}  Nxd6 {[%clk 0:00:42]} 33. Nxd6 {[%clk 0:00:20]}  Rxd6 {[%clk 0:00:42]} 34. Ne7+ {[%clk 0:00:20]}  Kf8 {[%clk 0:00:39]} 35. Qxd6 {[%clk 0:00:21]}  Qf1# {[%clk 0:00:39]} 0-1


[Site "https://www.chess.com"]

[Event "Early Titled Tuesday Blitz | February 8 2022"]
[White "Mayaud, Raphael"]
[Black "Odegov, Artem"]
[WhiteFideId "627151"]
[BlackFideId "34183644"]
[WhiteElo "2191"]
[BlackElo "2277"]
[Result "0-1"]
[Round "02"]
[TimeControl "180+1"]
[Date "2022.02.08"]
[WhiteClock "0:00:13"]
[BlackClock "0:01:13"]

1. d4 {[%clk 0:02:56]}  Nf6 {[%clk 0:02:59]} 2. Bg5 {[%clk 0:02:54]}  Ne4 {[%clk 0:02:59]} 3. Bf4 {[%clk 0:02:54]}  d5 {[%clk 0:02:59]} 4. e3 {[%clk 0:02:55]}  g6 {[%clk 0:02:59]} 5. Bd3 {[%clk 0:02:54]}  Bg7 {[%clk 0:02:59]} 6. Bxe4 {[%clk 0:02:55]}  dxe4 {[%clk 0:03:00]} 7. Nc3 {[%clk 0:02:55]}  f5 {[%clk 0:03:00]} 8. Qe2 {[%clk 0:02:51]}  O-O {[%clk 0:02:59]} 9. Qc4+ {[%clk 0:02:51]}  Kh8 {[%clk 0:02:58]} 10. Qxc7 {[%clk 0:02:52]}  Qe8 {[%clk 0:02:52]} 11. Be5 {[%clk 0:02:33]}  Nd7 {[%clk 0:02:41]} 12. Bxg7+ {[%clk 0:02:31]}  Kxg7 {[%clk 0:02:41]} 13. O-O-O {[%clk 0:02:16]}  Nf6 {[%clk 0:02:36]} 14. h4 {[%clk 0:02:00]}  Be6 {[%clk 0:02:34]} 15. Nge2 {[%clk 0:01:55]}  Rc8 {[%clk 0:02:34]} 16. Qe5 {[%clk 0:01:55]}  Bf7 {[%clk 0:02:30]} 17. h5 {[%clk 0:01:51]}  b5 {[%clk 0:02:22]} 18. g4 {[%clk 0:01:33]}  fxg4 {[%clk 0:02:12]} 19. Kb1 {[%clk 0:01:22]}  b4 {[%clk 0:02:07]} 20. Nxe4 {[%clk 0:01:21]}  Bxa2+ {[%clk 0:02:03]} 21. Kxa2 {[%clk 0:01:16]}  Qa4+ {[%clk 0:02:01]} 22. Kb1 {[%clk 0:01:11]}  Qxc2+ {[%clk 0:02:01]} 23. Ka1 {[%clk 0:01:11]}  Qxe4 {[%clk 0:01:40]} 24. Ng3 {[%clk 0:00:41]}  Qb7 {[%clk 0:01:25]} 25. hxg6 {[%clk 0:00:30]}  hxg6 {[%clk 0:01:23]} 26. Kb1 {[%clk 0:00:30]}  b3 {[%clk 0:01:19]} 27. d5 {[%clk 0:00:22]}  Qa6 {[%clk 0:01:15]} 28. Qxe7+ {[%clk 0:00:13]}  Rf7 {[%clk 0:01:14]} 29. Qxf7+ {[%clk 0:00:13]}  Kxf7 {[%clk 0:01:13]} 0-1


[Site "https://www.chess.com"]

[Event "Early Titled Tuesday Blitz | February 8 2022"]
[White "Mekhitarian, Krikor Sevag"]
[Black "Bodnaruk, Anastasia"]
[WhiteFideId "2107660"]
[BlackFideId "4181751"]
[WhiteElo "2598"]
[BlackElo "2393"]
[Result "1-0"]
[Round "02"]
[TimeControl "180+1"]
[Date "2022.02.08"]
[WhiteClock "0:00:08"]
[BlackClock "0:00:02"]

1. e4 {[%clk 0:02:59]}  c5 {[%clk 0:02:59]} 2. Nf3 {[%clk 0:02:58]}  d6 {[%clk 0:02:59]} 3. d4 {[%clk 0:02:58]}  cxd4 {[%clk 0:02:59]} 4. Nxd4 {[%clk 0:02:59]}  Nf6 {[%clk 0:03:00]} 5. Nc3 {[%clk 0:02:59]}  a6 {[%clk 0:03:00]} 6. a3 {[%clk 0:03:00]}  e5 {[%clk 0:02:57]} 7. Nf5 {[%clk 0:03:00]}  d5 {[%clk 0:02:28]} 8. Bg5 {[%clk 0:02:55]}  d4 {[%clk 0:02:27]} 9. Bxf6 {[%clk 0:02:55]}  gxf6 {[%clk 0:02:24]} 10. Na2 {[%clk 0:02:54]}  Nc6 {[%clk 0:02:13]} 11. Bd3 {[%clk 0:02:47]}  Bxf5 {[%clk 0:02:00]} 12. exf5 {[%clk 0:02:46]}  Qd5 {[%clk 0:02:00]} 13. Qg4 {[%clk 0:02:40]}  Bh6 {[%clk 0:01:47]} 14. Qe4 {[%clk 0:02:35]}  Qd7 {[%clk 0:01:39]} 15. O-O {[%clk 0:02:31]}  Rg8 {[%clk 0:01:36]} 16. g3 {[%clk 0:02:30]}  O-O-O {[%clk 0:01:29]} 17. Nb4 {[%clk 0:02:19]}  Ne7 {[%clk 0:01:29]} 18. Na2 {[%clk 0:01:15]}  Kb8 {[%clk 0:01:25]} 19. Rfd1 {[%clk 0:01:10]}  Rg5 {[%clk 0:01:05]} 20. h4 {[%clk 0:01:06]}  Rxf5 {[%clk 0:01:02]} 21. Qe2 {[%clk 0:01:05]}  Rg8 {[%clk 0:00:57]} 22. Bxf5 {[%clk 0:01:01]}  Nxf5 {[%clk 0:00:55]} 23. Rd3 {[%clk 0:00:51]}  Nxh4 {[%clk 0:00:51]} 24. Kh2 {[%clk 0:00:51]}  Nf5 {[%clk 0:00:45]} 25. Nc3 {[%clk 0:00:49]}  Nd6 {[%clk 0:00:34]} 26. Ne4 {[%clk 0:00:47]}  Nxe4 {[%clk 0:00:27]} 27. Qxe4 {[%clk 0:00:47]}  Rg4 {[%clk 0:00:27]} 28. Qf3 {[%clk 0:00:25]}  Bg7 {[%clk 0:00:18]} 29. Re1 {[%clk 0:00:23]}  f5 {[%clk 0:00:17]} 30. Qd1 {[%clk 0:00:22]}  e4 {[%clk 0:00:17]} 31. Rd2 {[%clk 0:00:20]}  Qd6 {[%clk 0:00:13]} 32. Kg2 {[%clk 0:00:17]}  h5 {[%clk 0:00:10]} 33. Rh1 {[%clk 0:00:18]}  Qg6 {[%clk 0:00:06]} 34. Rxd4 {[%clk 0:00:18]}  Bxd4 {[%clk 0:00:06]} 35. Qxd4 {[%clk 0:00:19]}  f4 {[%clk 0:00:04]} 36. Rh3 {[%clk 0:00:17]}  f3+ {[%clk 0:00:03]} 37. Kh2 {[%clk 0:00:17]}  h4 {[%clk 0:00:03]} 38. Qd8+ {[%clk 0:00:15]}  Ka7 {[%clk 0:00:04]} 39. Rxh4 {[%clk 0:00:15]}  Rxh4+ {[%clk 0:00:04]} 40. Qxh4 {[%clk 0:00:16]}  Qc6 {[%clk 0:00:04]} 41. c3 {[%clk 0:00:14]}  Qc5 {[%clk 0:00:05]} 42. g4 {[%clk 0:00:13]}  Qd5 {[%clk 0:00:05]} 43. Qf6 {[%clk 0:00:10]}  Qd2 {[%clk 0:00:04]} 44. Kg3 {[%clk 0:00:10]}  Qd1 {[%clk 0:00:04]} 45. Qd4+ {[%clk 0:00:07]}  Qxd4 {[%clk 0:00:04]} 46. cxd4 {[%clk 0:00:08]}  Kb6 {[%clk 0:00:04]} 47. Kf4 {[%clk 0:00:09]}  Kb5 {[%clk 0:00:04]} 48. Kxe4 {[%clk 0:00:09]}  Kc4 {[%clk 0:00:04]} 49. g5 {[%clk 0:00:09]}  a5 {[%clk 0:00:03]} 50. a4 {[%clk 0:00:07]}  b5 {[%clk 0:00:01]} 51. axb5 {[%clk 0:00:07]}  Kxb5 {[%clk 0:00:02]} 52. Kxf3 {[%clk 0:00:08]}  Kb4 {[%clk 0:00:02]} 53. d5 {[%clk 0:00:07]}  Kb3 {[%clk 0:00:02]} 54. d6 {[%clk 0:00:08]}  Kxb2 {[%clk 0:00:02]} 55. d7 {[%clk 0:00:08]} 1-0


[Site "https://www.chess.com"]

[Event "Early Titled Tuesday Blitz | February 8 2022"]
[White "Mirzoev, Azer"]
[Black "Dushyant Sharma"]
[WhiteFideId "13400304"]
[BlackFideId "25065130"]
[WhiteElo "2525"]
[BlackElo "2012"]
[Result "1/2-1/2"]
[Round "02"]
[TimeControl "180+1"]
[Date "2022.02.08"]
[WhiteClock "0:00:23"]
[BlackClock "0:00:09"]

1. c4 {[%clk 0:02:59]}  e6 {[%clk 0:02:59]} 2. Nc3 {[%clk 0:02:57]}  d5 {[%clk 0:02:59]} 3. e3 {[%clk 0:02:56]}  f5 {[%clk 0:02:59]} 4. Nf3 {[%clk 0:02:56]}  Nf6 {[%clk 0:02:59]} 5. b3 {[%clk 0:02:55]}  Bd6 {[%clk 0:02:59]} 6. Bb2 {[%clk 0:02:54]}  O-O {[%clk 0:03:00]} 7. Nb5 {[%clk 0:02:54]}  Be7 {[%clk 0:02:59]} 8. Be2 {[%clk 0:02:51]}  c6 {[%clk 0:02:59]} 9. Nbd4 {[%clk 0:02:41]}  c5 {[%clk 0:02:58]} 10. Nb5 {[%clk 0:02:39]}  a6 {[%clk 0:02:59]} 11. Na3 {[%clk 0:02:14]}  Nc6 {[%clk 0:02:59]} 12. O-O {[%clk 0:02:09]}  d4 {[%clk 0:02:46]} 13. exd4 {[%clk 0:02:07]}  cxd4 {[%clk 0:02:47]} 14. d3 {[%clk 0:02:01]}  e5 {[%clk 0:02:22]} 15. Nc2 {[%clk 0:02:01]}  a5 {[%clk 0:02:05]} 16. Re1 {[%clk 0:02:00]}  Bd6 {[%clk 0:01:46]} 17. Bf1 {[%clk 0:01:59]}  Qc7 {[%clk 0:01:41]} 18. h3 {[%clk 0:01:54]}  Bd7 {[%clk 0:01:26]} 19. a3 {[%clk 0:01:52]}  Rae8 {[%clk 0:01:24]} 20. Qd2 {[%clk 0:01:44]}  Qb6 {[%clk 0:01:07]} 21. Rab1 {[%clk 0:01:43]}  Qa7 {[%clk 0:00:45]} 22. b4 {[%clk 0:01:42]}  a4 {[%clk 0:00:44]} 23. b5 {[%clk 0:01:41]}  Na5 {[%clk 0:00:42]} 24. Qd1 {[%clk 0:01:27]}  Nb3 {[%clk 0:00:35]} 25. Nd2 {[%clk 0:01:27]}  Nxd2 {[%clk 0:00:23]} 26. Qxd2 {[%clk 0:01:26]}  Bc5 {[%clk 0:00:24]} 27. Rbd1 {[%clk 0:01:20]}  Bc8 {[%clk 0:00:13]} 28. Nb4 {[%clk 0:01:17]}  Qb6 {[%clk 0:00:10]} 29. Qc2 {[%clk 0:01:11]}  Qd6 {[%clk 0:00:10]} 30. Qxa4 {[%clk 0:01:08]}  b6 {[%clk 0:00:10]} 31. Nc6 {[%clk 0:01:06]}  Bb7 {[%clk 0:00:11]} 32. g3 {[%clk 0:00:53]}  Ra8 {[%clk 0:00:11]} 33. Qc2 {[%clk 0:00:50]}  Rfe8 {[%clk 0:00:11]} 34. Bg2 {[%clk 0:00:50]}  Bxa3 {[%clk 0:00:09]} 35. Bxa3 {[%clk 0:00:48]}  Rxa3 {[%clk 0:00:10]} 36. Qd2 {[%clk 0:00:36]}  Bxc6 {[%clk 0:00:09]} 37. bxc6 {[%clk 0:00:36]}  h6 {[%clk 0:00:08]} 38. Qb2 {[%clk 0:00:35]}  Qc5 {[%clk 0:00:07]} 39. Qb5 {[%clk 0:00:31]}  Ra5 {[%clk 0:00:04]} 40. Qxc5 {[%clk 0:00:31]}  bxc5 {[%clk 0:00:05]} 41. Rb1 {[%clk 0:00:30]}  e4 {[%clk 0:00:05]} 42. Rb5 {[%clk 0:00:26]}  Ra6 {[%clk 0:00:02]} 43. Rxc5 {[%clk 0:00:25]}  exd3 {[%clk 0:00:03]} 44. Rxe8+ {[%clk 0:00:25]}  Nxe8 {[%clk 0:00:04]} 45. c7 {[%clk 0:00:25]}  Nxc7 {[%clk 0:00:04]} 46. Rxc7 {[%clk 0:00:25]}  d2 {[%clk 0:00:04]} 47. Bd5+ {[%clk 0:00:25]}  Kh7 {[%clk 0:00:04]} 48. Bf3 {[%clk 0:00:25]}  Ra1+ {[%clk 0:00:04]} 49. Kg2 {[%clk 0:00:25]}  d1=Q {[%clk 0:00:04]} 50. Bxd1 {[%clk 0:00:26]}  Rxd1 {[%clk 0:00:05]} 51. Rd7 {[%clk 0:00:26]}  d3 {[%clk 0:00:04]} 52. Rd4 {[%clk 0:00:25]}  Rc1 {[%clk 0:00:05]} 53. Kf3 {[%clk 0:00:25]}  d2 {[%clk 0:00:05]} 54. Ke2 {[%clk 0:00:24]}  d1=Q+ {[%clk 0:00:05]} 55. Rxd1 {[%clk 0:00:24]}  Rxc4 {[%clk 0:00:06]} 56. h4 {[%clk 0:00:24]}  h5 {[%clk 0:00:06]} 57. Kf3 {[%clk 0:00:24]}  g6 {[%clk 0:00:06]} 58. Rd7+ {[%clk 0:00:24]}  Kh6 {[%clk 0:00:07]} 59. Rd8 {[%clk 0:00:24]}  Rc3+ {[%clk 0:00:07]} 60. Kf4 {[%clk 0:00:23]}  Rc4+ {[%clk 0:00:08]} 61. Kf3 {[%clk 0:00:24]}  Re4 {[%clk 0:00:08]} 62. Rh8+ {[%clk 0:00:23]}  Kg7 {[%clk 0:00:08]} 63. Ra8 {[%clk 0:00:23]}  Kh6 {[%clk 0:00:09]} 64. Rh8+ {[%clk 0:00:23]}  Kg7 {[%clk 0:00:09]} 65. Ra8 {[%clk 0:00:23]}  Kh6 {[%clk 0:00:09]} 66. Rh8+ {[%clk 0:00:23]} 1/2-1/2


[Site "https://www.chess.com"]